Cogmind - Beta 15 @@@ ROGUE MODE // 2025.09.25 @ 19:47:31 Player: Figgis Result: Self-destructed Performance ------------- Evolutions (1) 500 Regions Visited (2) 400 Robots Destroyed (12) 60 Value Destroyed (408) 408 Prototype IDs (3) 60 Alien Tech Used (0) 0 Bonus (0) 0 TOTAL SCORE: 1428 Bonus ------- None Cogmind --------- Core Integrity 388/400 Matter 213/300 Energy 125/125 System Corruption 0% Temperature Cool (6) Movement Walking (190) Ox1 Location -9/Materials Parts ------- > --- POWER (1) -------- Light Ion Engine > --- PROPULSION (2) --- Aluminum Leg Aluminum Leg > --- UTILITY (4) ------ Large Storage Unit Medium Armor Plating > --- WEAPON (2) ------- Assault Rifle Grenade Launcher > --- INVENTORY (15) --- Ion Engine Aluminum Leg Aluminum Leg Aluminum Leg Improved Flight Unit Improved Flight Unit Improved Flight Unit Improved Flight Unit EM Pulse Gun Small Laser Peak State ------------ > --- POWER ------------ Light Ion Engine > --- PROPULSION ------- Aluminum Leg Aluminum Leg > --- UTILITY ---------- Large Storage Unit Medium Armor Plating > --- WEAPON ----------- Assault Rifle Grenade Launcher > --- INVENTORY -------- Ion Engine Aluminum Leg Aluminum Leg Aluminum Leg Improved Flight Unit Improved Flight Unit Improved Flight Unit Improved Flight Unit EM Pulse Gun Small Laser [Rating: 9] Favorites ----------- Power Light Ion Engine Engine Light Ion Engine Propulsion Aluminum Leg Leg Aluminum Leg Flight Unit Improved Flight Unit Utility Large Storage Unit Storage Large Storage Unit Protection Medium Armor Plating Weapon Assault Rifle Energy Gun Small Laser Ballistic Gun Assault Rifle Launcher Grenade Launcher Build | -11 -10 -9 ------- Run | Yrd Mat Mat Slots Evolved 2 | . . 2 Power . | . . . Propulsion . | . . . Utility 2 | . . 2 Weapon . | . . . Parts Attached 13 | 3 9 1 Power 2 | 1 1 . Engine 2 | 1 1 . Core . | . . . Reactor . | . . . Propulsion 5 | 2 3 . Treads . | . . . Leg 4 | 2 2 . Wheel . | . . . Hover . | . . . Flight 1 | . 1 . Utility 3 | . 2 1 Device . | . . . Storage 2 | . 2 . Processor . | . . . Hackware . | . . . Protection 1 | . . 1 Artifact . | . . . Weapon 3 | . 3 . Energy Gun 1 | . 1 . Energy Cannon . | . . . Ballistic Gun 1 | . 1 . Ballistic Cannon . | . . . Launcher 1 | . 1 . Special Weapon . | . . . Impact Weapon . | . . . Slashing Weapon . | . . . Piercing Weapon . | . . . Special Melee Weapon . | . . . Unidentified Prototypes 1 | . 1 . Parts Lost 1 | . 1 . Power 1 | . 1 . Propulsion . | . . . Utility . | . . . Weapon . | . . . Highest Loss Streak 1 | . 1 . To Critical Strikes . | . . . Average Backups 9 | 2 8 10 Power 1 | . 1 1 Propulsion 5 | . 5 7 Utility . | . . . Weapon 2 | 1 2 2 Tool/Special . | . . . Unused Backups 8 | . 1 7 Power 1 | . . 1 Propulsion 5 | . . 5 Utility 1 | . 1 . Weapon 1 | . . 1 Tool/Special . | . . . Average Slot Usage (%) 78 | . 81 74 Engine 12 | . 13 11 Leg 25 | . 28 22 Storage 12 | . 13 11 Protection 3 | . . 8 Energy Gun 4 | . 6 . Ballistic Gun 12 | . 12 11 Launcher 7 | . 6 11 Peak Build Rating 9 | 3 8 9 Average Rating 7 | 1 6 8 On Entrance 3 | . 3 7 Naked Turns . | . . . Heaviest Build 35 | 3 28 35 Greatest Support 20 | 3 20 20 Greatest Overweight (x) 4 | . 4 1 Average Overweight (x) . | . . 1 Largest Inventory Capacity 15 | 5 15 15 Average Capacity 12 | 5 11 15 Most Carried 11 | 5 10 11 Average Carried 9 | 3 8 10 Final Capacity 15 | 5 15 15 Final Carried 10 | 5 10 10 Class Distribution -------------------- 100% | Mutant Dominant Class ---------------- Mutant | -10/Materials Mutant | -9/Materials Resources | -11 -10 -9 ----------- Run | Yrd Mat Mat Matter Collected 478 | 230 120 128 Remotely . | . . . Salvage Created 398 | . 342 56 Parts 22 | . 21 1 Haulers Intercepted . | . . . Recyclers Shooed 1 | . 1 . Parts Field Recycled . | . . . Retrieved Matter . | . . . Parts Self-Destructed . | . . . Prevented . | . . . Kills | -11 -10 -9 ------- Run | Yrd Mat Mat Combat Hostiles Destroyed 10 | . 9 1 Guns 6 | . 5 1 AOE 4 | . 4 . Classes Destroyed 3 | . 2 1 Mechanic 1 | . . 1 Watcher 1 | . 1 . Grunt 10 | . 9 1 Best Kill Streak 3 | . 3 1 Combat Bots Only 3 | . 3 1 Max Kills in Single Turn 1 | . 1 1 Gunslinging . | . . . Exploded 1 | . 1 . Melee . | . . . Uniques/NPCs Destroyed . | . . . Combat | -11 -10 -9 -------- Run | Yrd Mat Mat Hostile Shots Fired 54 | . 40 14 Missed 17 | . 12 5 Hits 37 | . 28 9 Projectile 37 | . 28 9 Critical Strikes 2 | . 1 1 Damage Taken 513 | . 401 112 Core 93 | . 81 12 Absorbed by Shields . | . . . Core Remaining (%) 83 | 100 67 . Volleys Fired 65 | . 34 31 Largest 2 | . 2 1 Hottest 60 | . 60 20 Shots Fired 88 | . 57 31 Gun 83 | . 52 31 Cannon . | . . . Launcher 5 | . 5 . Special . | . . . Kinetic 65 | . 34 31 Thermal 18 | . 18 . Explosive 5 | . 5 . Electromagnetic . | . . . Robot Hit Streak 10 | . 10 8 Robot Miss Streak 6 | . 4 6 Penetration Max . | . . . Secondary Targets . | . . . Shots Hit Robots 51 | . 35 16 Core Hits 26 | . 21 5 Critical Kills . | . . . Critical Parts Destroyed . | . . . Critical Strikes . | . . . Melee Attacks . | . . . Impact . | . . . Slashing . | . . . Piercing . | . . . Sneak Attacks . | . . . Combat Hostiles . | . . . Follow-up Attacks . | . . . Damage Inflicted 944 | . 732 212 Guns 640 | . 428 212 Cannons . | . . . Explosions 291 | . 291 . Melee . | . . . Ramming 13 | . 13 . Kinetic 483 | . 271 212 Thermal 157 | . 157 . Explosive 291 | . 291 . Electromagnetic . | . . . Impact . | . . . Slashing . | . . . Piercing . | . . . Highest Corruption 1 | . 1 . Average Corruption 1 | . 1 . Corruption Purged . | . . . Corruption Blocked . | . . . Overload Shots . | . . . Overflow Damage . | . . . Projectiles . | . . . Explosions . | . . . Melee . | . . . Knockbacks . | . . . Impact . | . . . Kinetic . | . . . Secondary . | . . . Self-Inflicted Damage . | . . . Shots . | . . . Rammed . | . . . Targets Rammed 1 | . 1 . Kicked 1 | . 1 . Crushed . | . . . Highest Temperature 56 | . 56 15 Average Temperature 22 | . 22 15 Received Heat Transfer 312 | . 234 78 Siege Activations . | . . . Martial Activations . | . . . Shielding Activations . | . . . Robots Disrupted . | . . . Combat Hostiles . | . . . Robots Corrupted . | . . . Combat Hostiles . | . . . Parts Fried . | . . . Impact Corruptions . | . . . Robots Melted . | . . . Combat Hostiles . | . . . Parts Melted . | . . . Heat Transferred 350 | . 350 . Parts Sabotaged . | . . . Parts Stolen . | . . . Parts Stripped . | . . . Power Chain Reactions . | . . . Alert | -11 -10 -9 ------- Run | Yrd Mat Mat Maximum Alert Level . | . . . Low Security (%) 100 | 100 100 100 Level 1 . | . . . Level 2 . | . . . Level 3 . | . . . Level 4 . | . . . Level 5 . | . . . High Security . | . . . Max Security . | . . . Peak Influence 106 | . 106 20 Initial . | . . . Average 23 | . 36 1 Influence Increases 293 | . 268 25 Destroy 0b10 Robot/C 200 | . 180 20 Destroy 0b10 Robot/NC 10 | . 5 5 Destroy Leader 42 | . 42 . Successful Hack 13 | . 13 . Destroy Structure 28 | . 28 . Influence Decreases 293 | . 268 25 Time Decay 211 | . 186 25 Purge Threat 82 | . 82 . Squads Dispatched 2 | . 1 1 Investigation 2 | . 1 1 Extermination . | . . . Reinforcement . | . . . Assault . | . . . Garrison . | . . . Intercept . | . . . Searches Triggered . | . . . Construction Impeded . | . . . Haulers Reinforced . | . . . Active Scanning Responses . | . . . Cargo Convoy Interrupts . | . . . Stealth | -11 -10 -9 --------- Run | Yrd Mat Mat Distress Signals 1 | . 1 . Communications Jammed . | . . . Distress Signals . | . . . Times Spotted 22 | . 15 7 Peak Tracking Total 4 | . 3 4 Tactical Retreats . | . . . Traps | -11 -10 -9 ------- Run | Yrd Mat Mat Traps Triggered 3 | . 2 1 Indirectly . | . . . Trap Hack Attempts . | . . . Triggered . | . . . Disarmed . | . . . Reprogrammed . | . . . Reused . | . . . Traps Extracted . | . . . Installed . | . . . Triggered . | . . . Machines | -11 -10 -9 ---------- Run | Yrd Mat Mat Machines Disabled . | . . . Max in Single Turn . | . . . Machines Repaired . | . . . Machines Dismantled . | . . . Machines Sabotaged . | . . . Overloaded Fab Kills . | . . . Hacking | -11 -10 -9 --------- Run | Yrd Mat Mat Machines Accessed 5 | . 4 1 Terminals 5 | . 4 1 Fabricators . | . . . Repair Stations . | . . . Recycling Units . | . . . Scanalyzers . | . . . Garrison Access . | . . . Total Hacks 8 | . 6 2 Successful 4 | . 4 . Failed 4 | . 2 2 Catastrophic . | . . . Database Lockouts . | . . . Manual . | . . . Terminals 8 | . 6 2 Fabricators . | . . . Repair Stations . | . . . Recycling Units . | . . . Scanalyzers . | . . . Garrison Access . | . . . Terminal Hacks 4 | . 4 . Prototype ID Bank 1 | . 1 . Unreport Threat 1 | . 1 . Locate Traps 2 | . 2 . Fabricator Hacks . | . . . Repair Station Hacks . | . . . Recycling Unit Hacks . | . . . Scanalyzer . | . . . Garrison Access Hacks . | . . . Unauthorized Hacks . | . . . Terminals . | . . . Fabricators . | . . . Repair Stations . | . . . Recycling Units . | . . . Scanalyzers . | . . . Garrison Access . | . . . Data Cores Recovered . | . . . Used . | . . . Hacking Detections 3 | . 2 1 Full Trace Events . | . . . Feedback Events . | . . . Feedback Blocked . | . . . Robot Schematics Acquired . | . . . Robots Built . | . . . Authchips . | . . . Time . | . . . Total Robot Build Rating . | . . . Part Schematics Acquired . | . . . Parts Built . | . . . Authchips . | . . . Time . | . . . Total Part Build Rating . | . . . Parts Repaired . | . . . Time . | . . . Parts Recycled . | . . . Recycled Matter . | . . . Retrieved Matter . | . . . Retrieved Components . | . . . Parts Scanalyzed . | . . . Part Schematics Acquired . | . . . Parts Damaged . | . . . Bothacking | -11 -10 -9 ------------ Run | Yrd Mat Mat Used RIF Installer . | . . . Robots Hacked . | . . . Non-combat . | . . . Combat . | . . . Robot Hacks Applied . | . . . Relay Couplers Released . | . . . Fabnet Peak Effective % . | . . . Robots Rewired . | . . . Allies Hacked . | . . . Hacks Repelled . | . . . Allies | -11 -10 -9 -------- Run | Yrd Mat Mat Total Allies . | . . . Largest Group . | . . . Highest-Rated Group . | . . . Highest-Rated Ally . | . . . Total Orders . | . . . Ally Attacks . | . . . Total Damage . | . . . Kills . | . . . Allies Corrupted . | . . . Allies Melted . | . . . Intel | -11 -10 -9 ------- Run | Yrd Mat Mat Active Infowar (turns) . | . . . Robot Analysis Total . | . . . Derelict Logs Recovered . | . . . Drone Launches . | . . . Drone Recoveries . | . . . Exploration | -11 -10 -9 ------------- Run | Yrd Mat Mat Turns Passed 923 | 26 576 321 Spaces Moved 479 | 32 312 135 Core 37 | 32 5 . Treads . | . . . Legs 442 | . 307 135 Wheels . | . . . Hover . | . . . Flight . | . . . Fastest Speed 50 | 50 50 190 Average Speed 148 | 50 141 190 Slowest Speed 250 | 50 250 190 Overloaded Moves . | . . . Propulsion Burnouts . | . . . Robots Hopped . | . . . Potential Cave-ins . | . . . Cave-ins Triggered . | . . . Exploration Rate (%) 25 | 3 58 16 Regions Visited 2 Branch Regions . Pre-discovered Areas . | . . . Known Exits Taken . | . . . Unknown Exits Taken 2 | 1 1 . Scrap Searched . | . . . Spaces Dug . | . . . Terrain Destroyed 46 | . 46 . Melee . | . . . Projectile . | . . . AOE 46 | . 46 . Terrain Rammed . | . . . Walls Destroyed . | . . . Machines Disabled . | . . . Actions | -11 -10 -9 --------- Run | Yrd Mat Mat Total 599 | 41 390 168 Wait 22 | . 22 . Move 477 | 31 311 135 Hop . | . . . Pick Up 17 | 7 9 1 Fast Attach 3 | 1 2 . Attach 7 | 2 4 1 Detach 1 | . 1 . Swap 3 | . 3 . Drop 3 | . 3 . Fire 65 | . 34 31 Melee . | . . . Ram . | . . . Kick 1 | . 1 . Crush . | . . . Escape Stasis . | . . . Rewire . | . . . Trap . | . . . Miscellaneous . | . . . Route ------- -11/Scrapyard -10/Materials (discovered 2 exits: *Mat x2) -9/Materials History --------- Turn | Location | Event 17 | -11/Scrapyard | Discovered new exit (range 15) 27 | -11/Scrapyard | Entered Materials 302 | -10/Materials | Build established: Mutant 340 | -10/Materials | Discovered new exit (range 10) 545 | -10/Materials | Discovered new exit (range 16) 603 | -10/Materials | Entered another Materials area 603 | -9/Materials | Evolved 2 slots: Utility x2 924 | -9/Materials | Self-destructed Last Messages --------------- 00586_ K-01 Serf cleans the Repair Station. PARAMETERS=UTILITY+2 LOCATION=UNKNOWN GOAL=ESCAPE 00626_ Connecting with Terminal... 00626_ Current location identified: Materials 00659_ Acquired 94 matter. 00666_ Acquired Med. Armor Plating. 00683_ K-01 Serf collects debris. 00787_ G-34 Mercenary destroyed. 00801_ K-01 Serf collects debris. 00811_ Acquired 34 matter. 00813_ K-01 Serf collects debris. 00819_ M-13 Machinist repairs A-02 Transporter Ion Engine. 00822_ K-01 Serf collects debris. 00904_ Triggered Alarm Trap. 00904_ An alarm sounds. 00904_ ALERT: Alarm triggered, dispatching investigation squad. 00920_ M-13 Machinist destroyed. 00922_ Critical hit (Burn: +37). Map ----- +----------------------------------------------------+ | ?????????????????????????????????????????????????? | | ?????????????????????????????????????????????????? | | ?????????????????????????????????????????????????? | | ?????????????????????????????????????????????????? | | ?????????????????????????????????????????????????? | | ?????????????????????????????????????????????????? | | ?????????????????????????????????????????????????? | | ?????????????????????????????????????????????????? | | ?????????????????????????????????????????????????? | | ??????????????????????????????????????? ???????? | | ????????????????????????????????????### "?? ??? | | ????????????????????????????????????# "?" "?? | | ????????????????????????????????????# """ "?? | | ????????????????????????????????????# ?? | | ????????????????????????????????????# ?? | | ????????????????????????????????????# """ """ | | ????????????????????????????????????# """ """ | | ????????????????????????????????????# """ """ | | ????????????????????????????????????# | | ????????????????????????????????????# | | ??????????????????????############### """ """ | | ??????????????????????# ^ """ """ | | ??????????????????????# """ """ | | ??????????????????????# | | ??????????????????????# t | | ??????????????????????# @########### | | ??????????????????????# #???????#####+#####"Y"# | | ??????????????????????# g#???????# #"""# | | ??????????????????????# +???????# """ """ ##### | | ??????????????????????# #???????# """ """ #???# | | ??????????????????????+ g #???????# """ """ #???# | | ??????????????????????# % #???????# #???# | | ??????????????????????# = #???????# #???# | | ??????????????????????# #???????# #???# | | ??????????????????????# ????????# #???# | | ??????????????????????# ????????###########???# | | ?????????????????????? ??????????????????????# | | ?????????????????????? ??????????????????????# | | ?????????????????????? ??????????????????????# | | ??????????????????????##+#??????????????????????## | | ????????????????????????????????????????????????# | | ????????????????????????????????????????????????# | | ????????????????????????????????????????????????# | | ????????????????????????????????????????????????# | | ????????????????????????????????????????????????# | | ????????????????????????????????????????????????# | | ????????????????????????????????????????????????# | | ????????????????????????????????????????????????# | | ????????????????????????????????????????????????# | | ????????????????????????????????????????????????## | +----------------------------------------------------+ Best States ------------- Heat Dissipation 28 Energy Generation 10 Energy Capacity 125 Matter Stores 300 Matter Capacity 300 Sight Range 16 Terrain Scan Density 10 Armor Coverage 225 Evasion (%) 55 Item Schematics ----------------- None Robot Schematics ------------------ None Fabricated ------------ Nothing Repaired ---------- Nothing Alien Tech Used ----------------- None Achievements -------------- None Challenges ------------ None Game ------ Seed NullWarpStripper Manual? 0 Play Time 00:07:47 Cumulative 182.0 hours Start 2025.09.25 @ 19:39:07 End 2025.09.25 @ 19:47:31 Sessions 1 Manual Loads 0 Difficulty Rogue Special Mode None Game No. 286 Rogue 283 Adventurer 3 Explorer 0 Win Type - Total 1 Types 1/0/0/0/0/0/0/0/0/0 Lore% 63 Gallery% 59 Achievement% 46 Wizard Run 0 Options --------- Layout 0 ASCII 0 Keyboard 0 Movement Mouse Keybinds 0 Fullscreen 2 Font 18/SmallcapsGlow Map View 76x50 Zoom Use 0% Tactical HUD 1 Map Filters NONE Filters NONE Steam 1 RUN: c8f8e0e0-0b71-4e11-b77b-eb40711c6c6b